[Event "Titled Tuesday Blitz May 23 Late 2023"]
[White "el_sporco"]
[Black "Zwirs, Nico"]
[BlackFideId "1036432"]
[WhiteElo "2364"]
[BlackElo "2381"]
[Result "0-1"]
[Round "02"]
[TimeControl "180+2"]
[Date "2023.05.23"]
[WhiteClock "0:00:00"]
[BlackClock "0:00:27"]

1. e4 {[%clk 0:03:00]}  c5 {[%clk 0:02:58]} 2. Nf3 {[%clk 0:02:59]}  Nc6 {[%clk 0:02:58]} 3. Bb5 {[%clk 0:02:58]}  d6 {[%clk 0:02:55]} 4. Bxc6+ {[%clk 0:02:56]}  bxc6 {[%clk 0:02:56]} 5. O-O {[%clk 0:02:56]}  e5 {[%clk 0:02:56]} 6. c3 {[%clk 0:02:55]}  Nf6 {[%clk 0:02:57]} 7. d4 {[%clk 0:02:42]}  Nxe4 {[%clk 0:02:55]} 8. dxe5 {[%clk 0:02:39]}  d5 {[%clk 0:02:56]} 9. Nbd2 {[%clk 0:02:38]}  Nxd2 {[%clk 0:02:52]} 10. Bxd2 {[%clk 0:02:38]}  Be7 {[%clk 0:02:53]} 11. Qa4 {[%clk 0:02:27]}  Qb6 {[%clk 0:02:50]} 12. b4 {[%clk 0:01:59]}  cxb4 {[%clk 0:02:48]} 13. cxb4 {[%clk 0:01:49]}  O-O {[%clk 0:02:47]} 14. Rab1 {[%clk 0:01:42]}  Bf5 {[%clk 0:02:42]} 15. Be3 {[%clk 0:01:39]}  Qb7 {[%clk 0:02:42]} 16. Rbc1 {[%clk 0:01:31]}  Qxb4 {[%clk 0:02:26]} 17. Qxb4 {[%clk 0:01:30]}  Bxb4 {[%clk 0:02:26]} 18. Rxc6 {[%clk 0:01:21]}  Rfc8 {[%clk 0:02:25]} 19. Rfc1 {[%clk 0:01:19]}  Rxc6 {[%clk 0:02:20]} 20. Rxc6 {[%clk 0:01:20]}  a5 {[%clk 0:02:20]} 21. Nd4 {[%clk 0:01:20]}  Bb1 {[%clk 0:02:10]} 22. a4 {[%clk 0:01:07]}  h6 {[%clk 0:02:10]} 23. e6 {[%clk 0:00:52]}  fxe6 {[%clk 0:02:08]} 24. Nxe6 {[%clk 0:00:53]}  Re8 {[%clk 0:01:43]} 25. h3 {[%clk 0:00:46]}  Be4 {[%clk 0:01:38]} 26. Bd4 {[%clk 0:00:43]}  Re7 {[%clk 0:01:31]} 27. Rc8+ {[%clk 0:00:36]}  Kf7 {[%clk 0:01:27]} 28. Nd8+ {[%clk 0:00:28]}  Kg6 {[%clk 0:01:23]} 29. Nc6 {[%clk 0:00:27]}  Rb7 {[%clk 0:01:18]} 30. Ne5+ {[%clk 0:00:24]}  Kh7 {[%clk 0:01:17]} 31. f3 {[%clk 0:00:19]}  Bf5 {[%clk 0:01:14]} 32. Rd8 {[%clk 0:00:19]}  Bc2 {[%clk 0:01:11]} 33. Nd7 {[%clk 0:00:16]}  Be7 {[%clk 0:01:02]} 34. Nf8+ {[%clk 0:00:16]}  Kg8 {[%clk 0:01:02]} 35. Rd7 {[%clk 0:00:15]}  Rb1+ {[%clk 0:00:59]} 36. Kh2 {[%clk 0:00:15]}  Bxf8 {[%clk 0:00:59]} 37. Rxd5 {[%clk 0:00:15]}  Rd1 {[%clk 0:00:56]} 38. Rd8 {[%clk 0:00:10]}  Bxa4 {[%clk 0:00:55]} 39. Kg3 {[%clk 0:00:09]}  Bc6 {[%clk 0:00:53]} 40. Kf2 {[%clk 0:00:09]}  Bb5 {[%clk 0:00:46]} 41. Ke3 {[%clk 0:00:09]}  a4 {[%clk 0:00:43]} 42. Rb8 {[%clk 0:00:09]}  Be8 {[%clk 0:00:27]} 43. Rxe8 {[%clk 0:00:00]}  Re1+ {[%clk 0:00:27]} 0-1


[Site "https://www.chess.com"]

[Event "Titled Tuesday Blitz May 23 Late 2023"]
[White "Domingo Nunez, Ruben"]
[Black "Onslow, Alfie"]
[WhiteFideId "22245570"]
[BlackFideId "436976"]
[WhiteElo "2404"]
[BlackElo "2114"]
[Result "1-0"]
[Round "02"]
[TimeControl "180+2"]
[Date "2023.05.23"]
[WhiteClock "0:00:42"]
[BlackClock "0:00:03"]

1. c4 {[%clk 0:02:57]}  c5 {[%clk 0:02:58]} 2. Nf3 {[%clk 0:02:39]}  Nf6 {[%clk 0:02:58]} 3. g3 {[%clk 0:02:40]}  g6 {[%clk 0:02:56]} 4. Bg2 {[%clk 0:02:40]}  d5 {[%clk 0:02:56]} 5. O-O {[%clk 0:02:41]}  d4 {[%clk 0:02:56]} 6. e3 {[%clk 0:02:40]}  Bg7 {[%clk 0:02:55]} 7. exd4 {[%clk 0:02:41]}  cxd4 {[%clk 0:02:56]} 8. d3 {[%clk 0:02:42]}  O-O {[%clk 0:02:56]} 9. Na3 {[%clk 0:02:40]}  Nc6 {[%clk 0:02:54]} 10. Re1 {[%clk 0:02:38]}  Nd7 {[%clk 0:02:47]} 11. Bd2 {[%clk 0:02:33]}  Nc5 {[%clk 0:02:38]} 12. Bf4 {[%clk 0:02:21]}  Bf5 {[%clk 0:02:16]} 13. Bf1 {[%clk 0:02:07]}  e5 {[%clk 0:02:15]} 14. Nxe5 {[%clk 0:02:05]}  Bxe5 {[%clk 0:01:40]} 15. Bxe5 {[%clk 0:02:06]}  Nb4 {[%clk 0:01:41]} 16. Nc2 {[%clk 0:01:40]}  Nbxd3 {[%clk 0:01:34]} 17. Nxd4 {[%clk 0:01:38]}  Nxe1 {[%clk 0:01:30]} 18. Nxf5 {[%clk 0:01:38]}  gxf5 {[%clk 0:01:07]} 19. Qxe1 {[%clk 0:01:37]}  Nd3 {[%clk 0:00:45]} 20. Bxd3 {[%clk 0:01:37]}  Qxd3 {[%clk 0:00:46]} 21. Bf6 {[%clk 0:01:28]}  Rfe8 {[%clk 0:00:43]} 22. Qc1 {[%clk 0:01:28]}  f4 {[%clk 0:00:35]} 23. Qxf4 {[%clk 0:01:28]}  Re6 {[%clk 0:00:24]} 24. h4 {[%clk 0:01:27]}  Qg6 {[%clk 0:00:18]} 25. Bc3 {[%clk 0:01:22]}  Rae8 {[%clk 0:00:16]} 26. Rd1 {[%clk 0:01:22]}  Qe4 {[%clk 0:00:10]} 27. Qg5+ {[%clk 0:01:14]}  Rg6 {[%clk 0:00:11]} 28. Qb5 {[%clk 0:01:15]}  Qe2 {[%clk 0:00:08]} 29. Re1 {[%clk 0:01:12]}  Qxe1+ {[%clk 0:00:08]} 30. Bxe1 {[%clk 0:01:13]}  Rxe1+ {[%clk 0:00:08]} 31. Kg2 {[%clk 0:01:14]}  Re7 {[%clk 0:00:07]} 32. Qa5 {[%clk 0:01:13]}  Rge6 {[%clk 0:00:05]} 33. Qxa7 {[%clk 0:01:13]}  Kg7 {[%clk 0:00:06]} 34. a4 {[%clk 0:01:13]}  f6 {[%clk 0:00:05]} 35. Qd4 {[%clk 0:01:13]}  Kf7 {[%clk 0:00:06]} 36. b3 {[%clk 0:01:13]}  Re4 {[%clk 0:00:05]} 37. Qd5+ {[%clk 0:01:13]}  Kg7 {[%clk 0:00:06]} 38. a5 {[%clk 0:01:12]}  Re2 {[%clk 0:00:05]} 39. b4 {[%clk 0:01:10]}  Rb2 {[%clk 0:00:05]} 40. Qc5 {[%clk 0:01:09]}  Ree2 {[%clk 0:00:05]} 41. b5 {[%clk 0:01:09]}  Ra2 {[%clk 0:00:05]} 42. Kf3 {[%clk 0:01:07]}  Reb2 {[%clk 0:00:04]} 43. Qb6 {[%clk 0:01:05]}  Kg6 {[%clk 0:00:04]} 44. g4 {[%clk 0:01:02]}  Rb3+ {[%clk 0:00:03]} 45. Kg2 {[%clk 0:01:02]}  Rbb2 {[%clk 0:00:04]} 46. Qe3 {[%clk 0:00:59]}  Rxa5 {[%clk 0:00:03]} 47. h5+ {[%clk 0:00:59]}  Kf7 {[%clk 0:00:02]} 48. Qe4 {[%clk 0:00:55]}  Raa2 {[%clk 0:00:03]} 49. Qxh7+ {[%clk 0:00:54]}  Ke6 {[%clk 0:00:03]} 50. Qe4+ {[%clk 0:00:53]}  Kf7 {[%clk 0:00:04]} 51. Qxb7+ {[%clk 0:00:53]}  Ke6 {[%clk 0:00:05]} 52. Qd5+ {[%clk 0:00:53]}  Ke7 {[%clk 0:00:05]} 53. Qc5+ {[%clk 0:00:52]}  Kf7 {[%clk 0:00:06]} 54. Qc7+ {[%clk 0:00:44]}  Ke6 {[%clk 0:00:06]} 55. Qf4 {[%clk 0:00:44]}  Rc2 {[%clk 0:00:05]} 56. Qf5+ {[%clk 0:00:44]}  Ke7 {[%clk 0:00:05]} 57. b6 {[%clk 0:00:44]}  Rab2 {[%clk 0:00:04]} 58. c5 {[%clk 0:00:44]}  Kf7 {[%clk 0:00:03]} 59. b7 {[%clk 0:00:42]}  Rxb7 {[%clk 0:00:02]} 60. Qd5+ {[%clk 0:00:43]}  Kf8 {[%clk 0:00:02]} 61. Qxb7 {[%clk 0:00:43]}  f5 {[%clk 0:00:03]} 62. Qc8+ {[%clk 0:00:42]}  Kg7 {[%clk 0:00:03]} 63. Qxf5 {[%clk 0:00:43]}  Kh6 {[%clk 0:00:03]} 64. Qg6# {[%clk 0:00:42]} 1-0


[Site "https://www.chess.com"]

[Event "Titled Tuesday Blitz May 23 Late 2023"]
[White "Celestino, Rafael Teixeira"]
[Black "Camilla_Lee"]
[WhiteFideId "2108925"]
[WhiteElo "2355"]
[BlackElo "2676"]
[Result "0-1"]
[Round "02"]
[TimeControl "180+2"]
[Date "2023.05.23"]
[WhiteClock "0:01:18"]
[BlackClock "0:01:23"]

1. e4 {[%clk 0:03:00]}  e5 {[%clk 0:02:59]} 2. Nf3 {[%clk 0:02:57]}  Nc6 {[%clk 0:02:59]} 3. Bc4 {[%clk 0:02:57]}  Nf6 {[%clk 0:02:58]} 4. Ng5 {[%clk 0:02:57]}  d5 {[%clk 0:02:57]} 5. exd5 {[%clk 0:02:58]}  Nd4 {[%clk 0:02:58]} 6. Nc3 {[%clk 0:02:56]}  Bg4 {[%clk 0:02:44]} 7. f3 {[%clk 0:02:55]}  Bf5 {[%clk 0:02:44]} 8. d6 {[%clk 0:02:43]}  Bxc2 {[%clk 0:02:30]} 9. Bxf7+ {[%clk 0:02:24]}  Kd7 {[%clk 0:02:29]} 10. Be6+ {[%clk 0:02:17]}  Kc6 {[%clk 0:02:11]} 11. dxc7 {[%clk 0:01:34]}  Qxc7 {[%clk 0:02:01]} 12. Bd5+ {[%clk 0:01:33]}  Nxd5 {[%clk 0:01:58]} 13. Nxd5 {[%clk 0:01:34]}  Kxd5 {[%clk 0:01:57]} 14. O-O {[%clk 0:01:31]}  Bxd1 {[%clk 0:01:57]} 15. Rxd1 {[%clk 0:01:31]}  Be7 {[%clk 0:01:40]} 16. Ne4 {[%clk 0:01:30]}  Ke6 {[%clk 0:01:40]} 17. b3 {[%clk 0:01:29]}  Qc2 {[%clk 0:01:37]} 18. Re1 {[%clk 0:01:27]}  Rac8 {[%clk 0:01:35]} 19. f4 {[%clk 0:01:24]}  Rhf8 {[%clk 0:01:32]} 20. fxe5 {[%clk 0:01:24]}  Ne2+ {[%clk 0:01:25]} 21. Kh1 {[%clk 0:01:18]}  Qxe4 {[%clk 0:01:23]} 0-1


[Site "https://www.chess.com"]

[Event "Titled Tuesday Blitz May 23 Late 2023"]
[White "Djokic, Mihailo"]
[Black "KVAIDAN"]
[WhiteFideId "976440"]
[WhiteElo "2294"]
[BlackElo "2297"]
[Result "1-0"]
[Round "02"]
[TimeControl "180+2"]
[Date "2023.05.23"]
[WhiteClock "0:01:23"]
[BlackClock "0:01:22"]

1. e4 {[%clk 0:03:00]}  e5 {[%clk 0:02:59]} 2. Nf3 {[%clk 0:03:00]}  d5 {[%clk 0:02:59]} 3. Nxe5 {[%clk 0:03:00]}  Bd6 {[%clk 0:02:58]} 4. d4 {[%clk 0:03:00]}  dxe4 {[%clk 0:02:58]} 5. Nc4 {[%clk 0:03:00]}  Nf6 {[%clk 0:02:58]} 6. Nc3 {[%clk 0:02:58]}  O-O {[%clk 0:02:57]} 7. Ne3 {[%clk 0:02:55]}  Nc6 {[%clk 0:02:56]} 8. Be2 {[%clk 0:02:46]}  Bb4 {[%clk 0:02:56]} 9. a3 {[%clk 0:02:39]}  Bxc3+ {[%clk 0:02:53]} 10. bxc3 {[%clk 0:02:39]}  Nd5 {[%clk 0:02:53]} 11. Nxd5 {[%clk 0:02:34]}  Qxd5 {[%clk 0:02:53]} 12. Bf4 {[%clk 0:02:30]}  Ne7 {[%clk 0:02:44]} 13. O-O {[%clk 0:02:21]}  c6 {[%clk 0:02:42]} 14. c4 {[%clk 0:02:19]}  Qf5 {[%clk 0:02:36]} 15. Bd6 {[%clk 0:02:19]}  Re8 {[%clk 0:02:36]} 16. Rb1 {[%clk 0:02:16]}  Qe6 {[%clk 0:02:36]} 17. c5 {[%clk 0:02:10]}  Nf5 {[%clk 0:02:34]} 18. Be5 {[%clk 0:02:05]}  Qg6 {[%clk 0:02:17]} 19. Bh5 {[%clk 0:02:00]}  Qh6 {[%clk 0:02:16]} 20. Re1 {[%clk 0:01:52]}  e3 {[%clk 0:01:50]} 21. fxe3 {[%clk 0:01:41]}  Nxe3 {[%clk 0:01:49]} 22. Qf3 {[%clk 0:01:41]}  Nf5 {[%clk 0:01:41]} 23. Bf4 {[%clk 0:01:32]}  Qe6 {[%clk 0:01:31]} 24. Rxe6 {[%clk 0:01:32]}  Bxe6 {[%clk 0:01:31]} 25. Be5 {[%clk 0:01:30]}  g6 {[%clk 0:01:30]} 26. Bg4 {[%clk 0:01:28]}  Nh4 {[%clk 0:01:29]} 27. Qf6 {[%clk 0:01:26]}  Kf8 {[%clk 0:01:28]} 28. Qxh4 {[%clk 0:01:23]}  h5 {[%clk 0:01:27]} 29. Bxe6 {[%clk 0:01:22]}  Rxe6 {[%clk 0:01:28]} 30. Rxb7 {[%clk 0:01:22]}  Rae8 {[%clk 0:01:25]} 31. Qg5 {[%clk 0:01:22]}  f6 {[%clk 0:01:22]} 32. Qh6+ {[%clk 0:01:22]}  Kg8 {[%clk 0:01:22]} 33. Qg7# {[%clk 0:01:23]} 1-0


[Site "https://www.chess.com"]

[Event "Titled Tuesday Blitz May 23 Late 2023"]
[White "Estrada Nieto, Julian"]
[Black "Paravyan, David"]
[WhiteFideId "5101018"]
[BlackFideId "4194985"]
[WhiteElo "2161"]
[BlackElo "2563"]
[Result "0-1"]
[Round "02"]
[TimeControl "180+2"]
[Date "2023.05.23"]
[WhiteClock "0:00:03"]
[BlackClock "0:01:42"]

1. e4 {[%clk 0:03:00]}  e5 {[%clk 0:02:59]} 2. Nf3 {[%clk 0:03:00]}  Nf6 {[%clk 0:03:00]} 3. d4 {[%clk 0:03:00]}  Nxe4 {[%clk 0:03:00]} 4. Bd3 {[%clk 0:03:00]}  d5 {[%clk 0:03:01]} 5. Nxe5 {[%clk 0:03:00]}  Nd7 {[%clk 0:03:01]} 6. Nxd7 {[%clk 0:03:01]}  Bxd7 {[%clk 0:03:02]} 7. O-O {[%clk 0:03:01]}  Bd6 {[%clk 0:03:03]} 8. Nc3 {[%clk 0:03:01]}  Nxc3 {[%clk 0:03:03]} 9. bxc3 {[%clk 0:03:01]}  O-O {[%clk 0:03:02]} 10. Re1 {[%clk 0:02:58]}  Qh4 {[%clk 0:02:59]} 11. g3 {[%clk 0:02:57]}  Qh3 {[%clk 0:03:00]} 12. Qf3 {[%clk 0:02:51]}  Rae8 {[%clk 0:02:58]} 13. Bd2 {[%clk 0:02:36]}  c6 {[%clk 0:02:53]} 14. c4 {[%clk 0:02:34]}  Bg4 {[%clk 0:02:49]} 15. Qg2 {[%clk 0:02:33]}  Qh5 {[%clk 0:02:48]} 16. cxd5 {[%clk 0:02:15]}  Bf3 {[%clk 0:02:46]} 17. Qf1 {[%clk 0:02:16]}  Qxd5 {[%clk 0:02:45]} 18. Re3 {[%clk 0:02:02]}  Rxe3 {[%clk 0:02:41]} 19. fxe3 {[%clk 0:01:58]}  Be4 {[%clk 0:02:35]} 20. c4 {[%clk 0:01:47]}  Qe6 {[%clk 0:02:29]} 21. Rb1 {[%clk 0:01:45]}  b6 {[%clk 0:02:27]} 22. Bb4 {[%clk 0:01:30]}  Bxb4 {[%clk 0:02:16]} 23. Rxb4 {[%clk 0:01:29]}  Re8 {[%clk 0:02:17]} 24. Bxe4 {[%clk 0:01:16]}  Qxe4 {[%clk 0:02:18]} 25. Rb3 {[%clk 0:01:16]}  h5 {[%clk 0:02:18]} 26. Qg2 {[%clk 0:01:13]}  Qe6 {[%clk 0:02:15]} 27. d5 {[%clk 0:01:11]}  Qf6 {[%clk 0:02:11]} 28. dxc6 {[%clk 0:01:00]}  Rc8 {[%clk 0:02:10]} 29. Rd3 {[%clk 0:00:58]}  g6 {[%clk 0:02:09]} 30. Qd5 {[%clk 0:00:51]}  Qxc6 {[%clk 0:02:07]} 31. Qxc6 {[%clk 0:00:50]}  Rxc6 {[%clk 0:02:08]} 32. Rd4 {[%clk 0:00:49]}  Rc5 {[%clk 0:02:08]} 33. Kf2 {[%clk 0:00:45]}  Ra5 {[%clk 0:02:09]} 34. Rd2 {[%clk 0:00:45]}  Ra4 {[%clk 0:02:06]} 35. Rc2 {[%clk 0:00:45]}  Kf8 {[%clk 0:02:06]} 36. Ke2 {[%clk 0:00:43]}  Ke7 {[%clk 0:02:06]} 37. Kd3 {[%clk 0:00:44]}  Kd6 {[%clk 0:02:04]} 38. Kd4 {[%clk 0:00:44]}  b5 {[%clk 0:02:03]} 39. e4 {[%clk 0:00:38]}  f6 {[%clk 0:02:03]} 40. Kd3 {[%clk 0:00:25]}  bxc4+ {[%clk 0:01:57]} 41. Kd4 {[%clk 0:00:22]}  g5 {[%clk 0:01:51]} 42. h4 {[%clk 0:00:20]}  g4 {[%clk 0:01:48]} 43. Rxc4 {[%clk 0:00:12]}  Rxa2 {[%clk 0:01:45]} 44. Rc8 {[%clk 0:00:10]}  Rd2+ {[%clk 0:01:44]} 45. Ke3 {[%clk 0:00:10]}  Rg2 {[%clk 0:01:45]} 46. Kf4 {[%clk 0:00:09]}  Rf2+ {[%clk 0:01:45]} 47. Ke3 {[%clk 0:00:10]}  Rf3+ {[%clk 0:01:45]} 48. Kd4 {[%clk 0:00:11]}  Rxg3 {[%clk 0:01:46]} 49. Rh8 {[%clk 0:00:11]}  Rg1 {[%clk 0:01:46]} 50. Rxh5 {[%clk 0:00:11]}  g3 {[%clk 0:01:41]} 51. Rh6 {[%clk 0:00:10]}  g2 {[%clk 0:01:39]} 52. Rxf6+ {[%clk 0:00:07]}  Ke7 {[%clk 0:01:40]} 53. Rg6 {[%clk 0:00:07]}  Rd1+ {[%clk 0:01:40]} 54. Ke5 {[%clk 0:00:07]}  g1=Q {[%clk 0:01:41]} 55. Rxg1 {[%clk 0:00:03]}  Rxg1 {[%clk 0:01:42]} 0-1


[Site "https://www.chess.com"]

[Event "Titled Tuesday Blitz May 23 Late 2023"]
[White "Svane, Frederik"]
[Black "Santos Flores, Alberto"]
[WhiteFideId "12923044"]
[BlackFideId "3601234"]
[WhiteElo "2502"]
[BlackElo "2235"]
[Result "1-0"]
[Round "02"]
[TimeControl "180+2"]
[Date "2023.05.23"]
[WhiteClock "0:00:06"]
[BlackClock "0:00:00"]

1. e4 {[%clk 0:02:33]}  e6 {[%clk 0:02:58]} 2. d3 {[%clk 0:02:32]}  d5 {[%clk 0:02:58]} 3. Qe2 {[%clk 0:02:33]}  dxe4 {[%clk 0:02:47]} 4. dxe4 {[%clk 0:02:32]}  e5 {[%clk 0:02:47]} 5. Nf3 {[%clk 0:02:26]}  Nc6 {[%clk 0:02:47]} 6. c3 {[%clk 0:02:27]}  Nf6 {[%clk 0:02:46]} 7. Qc2 {[%clk 0:02:26]}  Bc5 {[%clk 0:02:45]} 8. Bb5 {[%clk 0:02:22]}  O-O {[%clk 0:02:44]} 9. O-O {[%clk 0:02:20]}  Qe7 {[%clk 0:02:35]} 10. Nbd2 {[%clk 0:02:16]}  Bg4 {[%clk 0:02:27]} 11. h3 {[%clk 0:02:12]}  Bh5 {[%clk 0:02:27]} 12. Nh4 {[%clk 0:02:05]}  Bg6 {[%clk 0:02:16]} 13. Nxg6 {[%clk 0:02:02]}  hxg6 {[%clk 0:02:17]} 14. Nf3 {[%clk 0:02:01]}  Rad8 {[%clk 0:02:12]} 15. a4 {[%clk 0:02:00]}  a6 {[%clk 0:02:11]} 16. Bc4 {[%clk 0:01:58]}  a5 {[%clk 0:02:05]} 17. Bg5 {[%clk 0:01:44]}  Rd6 {[%clk 0:02:02]} 18. Rfd1 {[%clk 0:01:35]}  Rfd8 {[%clk 0:02:01]} 19. Rxd6 {[%clk 0:01:35]}  Qxd6 {[%clk 0:02:00]} 20. Re1 {[%clk 0:01:20]}  Bb6 {[%clk 0:01:55]} 21. g3 {[%clk 0:01:16]}  Rd7 {[%clk 0:01:45]} 22. Kg2 {[%clk 0:01:15]}  Nh7 {[%clk 0:01:43]} 23. Bc1 {[%clk 0:01:13]}  Nd8 {[%clk 0:01:30]} 24. Qb3 {[%clk 0:00:56]}  Bc5 {[%clk 0:01:03]} 25. Qb5 {[%clk 0:00:50]}  b6 {[%clk 0:00:48]} 26. Bb3 {[%clk 0:00:45]}  Ne6 {[%clk 0:00:43]} 27. Nxe5 {[%clk 0:00:36]}  Rd8 {[%clk 0:00:28]} 28. Nc6 {[%clk 0:00:07]}  Rf8 {[%clk 0:00:00]} 29. Rd1 {[%clk 0:00:06]} 1-0


[Site "https://www.chess.com"]

[Event "Titled Tuesday Blitz May 23 Late 2023"]
[White "Zakhartsov, Vladimir"]
[Black "Janaszak, Dawid"]
[WhiteFideId "4145097"]
[BlackFideId "1119206"]
[WhiteElo "2495"]
[BlackElo "2220"]
[Result "1-0"]
[Round "02"]
[TimeControl "180+2"]
[Date "2023.05.23"]
[WhiteClock "0:00:09"]
[BlackClock "0:00:00"]

1. e4 {[%clk 0:02:55]}  c5 {[%clk 0:02:59]} 2. Nf3 {[%clk 0:02:55]}  Nc6 {[%clk 0:02:59]} 3. Bb5 {[%clk 0:02:55]}  e5 {[%clk 0:03:00]} 4. Bxc6 {[%clk 0:02:53]}  bxc6 {[%clk 0:02:55]} 5. O-O {[%clk 0:02:51]}  d6 {[%clk 0:02:53]} 6. c3 {[%clk 0:02:51]}  Nf6 {[%clk 0:02:53]} 7. Re1 {[%clk 0:02:51]}  Be7 {[%clk 0:02:50]} 8. d4 {[%clk 0:02:51]}  cxd4 {[%clk 0:02:51]} 9. cxd4 {[%clk 0:02:51]}  exd4 {[%clk 0:02:48]} 10. Nxd4 {[%clk 0:02:52]}  Qc7 {[%clk 0:02:35]} 11. Bf4 {[%clk 0:02:49]}  O-O {[%clk 0:02:34]} 12. e5 {[%clk 0:02:50]}  Nd5 {[%clk 0:02:20]} 13. Bg3 {[%clk 0:02:25]}  dxe5 {[%clk 0:02:18]} 14. Bxe5 {[%clk 0:02:25]}  Bd6 {[%clk 0:02:18]} 15. Bxd6 {[%clk 0:02:15]}  Qxd6 {[%clk 0:02:18]} 16. Nd2 {[%clk 0:02:11]}  Bd7 {[%clk 0:02:07]} 17. Ne4 {[%clk 0:02:05]}  Qb4 {[%clk 0:02:03]} 18. Qd2 {[%clk 0:01:49]}  Rab8 {[%clk 0:01:55]} 19. b3 {[%clk 0:01:40]}  Rfe8 {[%clk 0:01:47]} 20. f3 {[%clk 0:00:56]}  h6 {[%clk 0:01:40]} 21. Qxb4 {[%clk 0:00:54]}  Rxb4 {[%clk 0:01:35]} 22. Nc2 {[%clk 0:00:54]}  Rbb8 {[%clk 0:01:29]} 23. Nc5 {[%clk 0:00:54]}  Red8 {[%clk 0:01:13]} 24. Nd4 {[%clk 0:00:49]}  Be8 {[%clk 0:01:13]} 25. Rad1 {[%clk 0:00:48]}  Nc3 {[%clk 0:01:11]} 26. Rd2 {[%clk 0:00:45]}  Rd5 {[%clk 0:00:50]} 27. b4 {[%clk 0:00:38]}  Rbd8 {[%clk 0:00:47]} 28. Ncb3 {[%clk 0:00:32]}  Kf8 {[%clk 0:00:31]} 29. Rc2 {[%clk 0:00:31]}  Nb5 {[%clk 0:00:20]} 30. Nxc6 {[%clk 0:00:25]}  Rc8 {[%clk 0:00:15]} 31. Ncd4 {[%clk 0:00:22]}  Rxc2 {[%clk 0:00:10]} 32. Nxc2 {[%clk 0:00:23]}  Nc3 {[%clk 0:00:09]} 33. a3 {[%clk 0:00:22]}  Ba4 {[%clk 0:00:09]} 34. Ncd4 {[%clk 0:00:20]}  Nb5 {[%clk 0:00:08]} 35. Nxb5 {[%clk 0:00:18]}  Rxb5 {[%clk 0:00:07]} 36. Nc5 {[%clk 0:00:18]}  Bc2 {[%clk 0:00:06]} 37. Re5 {[%clk 0:00:16]}  Kg8 {[%clk 0:00:06]} 38. Kf2 {[%clk 0:00:14]}  f6 {[%clk 0:00:06]} 39. Re8+ {[%clk 0:00:14]}  Kf7 {[%clk 0:00:06]} 40. Ra8 {[%clk 0:00:14]}  Kg6 {[%clk 0:00:03]} 41. Rxa7 {[%clk 0:00:14]}  Rb6 {[%clk 0:00:03]} 42. Rd7 {[%clk 0:00:12]}  Bb1 {[%clk 0:00:03]} 43. Ke3 {[%clk 0:00:12]}  Rb8 {[%clk 0:00:03]} 44. Kd4 {[%clk 0:00:12]}  Re8 {[%clk 0:00:04]} 45. b5 {[%clk 0:00:12]}  Re2 {[%clk 0:00:03]} 46. b6 {[%clk 0:00:12]}  Rxg2 {[%clk 0:00:03]} 47. b7 {[%clk 0:00:12]}  Rb2 {[%clk 0:00:04]} 48. Kc3 {[%clk 0:00:11]}  Rb5 {[%clk 0:00:03]} 49. Kc4 {[%clk 0:00:11]}  Rb6 {[%clk 0:00:03]} 50. Rd8 {[%clk 0:00:11]}  Ba2+ {[%clk 0:00:04]} 51. Kc3 {[%clk 0:00:11]}  Rc6 {[%clk 0:00:00]} 52. Kd4 {[%clk 0:00:09]} 1-0


[Site "https://www.chess.com"]

[Event "Titled Tuesday Blitz May 23 Late 2023"]
[White "Keymer, Vincent"]
[Black "Toniutti, Ezio"]
[WhiteFideId "12940690"]
[BlackFideId "113034"]
[WhiteElo "2669"]
[BlackElo "2215"]
[Result "1-0"]
[Round "02"]
[TimeControl "180+2"]
[Date "2023.05.23"]
[WhiteClock "0:00:12"]
[BlackClock "0:00:05"]

1. a3 {[%clk 0:03:00]}  d5 {[%clk 0:02:58]} 2. Nf3 {[%clk 0:02:58]}  Bf5 {[%clk 0:02:58]} 3. b4 {[%clk 0:02:52]}  e6 {[%clk 0:02:58]} 4. Bb2 {[%clk 0:02:51]}  Nf6 {[%clk 0:02:58]} 5. e3 {[%clk 0:02:38]}  Be7 {[%clk 0:02:58]} 6. Be2 {[%clk 0:02:37]}  h6 {[%clk 0:02:57]} 7. O-O {[%clk 0:02:35]}  O-O {[%clk 0:02:57]} 8. c4 {[%clk 0:02:36]}  c6 {[%clk 0:02:57]} 9. Nc3 {[%clk 0:02:35]}  Bh7 {[%clk 0:02:55]} 10. h3 {[%clk 0:02:34]}  Nbd7 {[%clk 0:02:55]} 11. Rc1 {[%clk 0:02:34]}  Re8 {[%clk 0:02:55]} 12. Qb3 {[%clk 0:02:33]}  Bf8 {[%clk 0:02:54]} 13. Rfd1 {[%clk 0:02:32]}  a5 {[%clk 0:02:52]} 14. d4 {[%clk 0:02:21]}  axb4 {[%clk 0:02:48]} 15. axb4 {[%clk 0:02:22]}  dxc4 {[%clk 0:02:41]} 16. Bxc4 {[%clk 0:02:14]}  Nb6 {[%clk 0:02:41]} 17. Be2 {[%clk 0:02:11]}  Nbd5 {[%clk 0:02:40]} 18. b5 {[%clk 0:02:10]}  Nxc3 {[%clk 0:02:32]} 19. Bxc3 {[%clk 0:02:02]}  Qb6 {[%clk 0:02:06]} 20. Bb4 {[%clk 0:02:01]}  Bxb4 {[%clk 0:02:00]} 21. Qxb4 {[%clk 0:02:02]}  Nd5 {[%clk 0:02:00]} 22. Qb2 {[%clk 0:02:00]}  Rec8 {[%clk 0:01:47]} 23. Ne5 {[%clk 0:01:36]}  cxb5 {[%clk 0:01:32]} 24. Bxb5 {[%clk 0:01:23]}  Qd8 {[%clk 0:00:42]} 25. Be2 {[%clk 0:01:03]}  Rxc1 {[%clk 0:00:34]} 26. Rxc1 {[%clk 0:01:02]}  Rc8 {[%clk 0:00:34]} 27. Bh5 {[%clk 0:00:37]}  g6 {[%clk 0:00:25]} 28. Bf3 {[%clk 0:00:32]}  Kg7 {[%clk 0:00:18]} 29. Ra1 {[%clk 0:00:19]}  Rc7 {[%clk 0:00:15]} 30. g3 {[%clk 0:00:20]}  g5 {[%clk 0:00:15]} 31. Ra3 {[%clk 0:00:17]}  Nf6 {[%clk 0:00:14]} 32. Rb3 {[%clk 0:00:15]}  Be4 {[%clk 0:00:13]} 33. Bxe4 {[%clk 0:00:13]}  Nxe4 {[%clk 0:00:13]} 34. Rxb7 {[%clk 0:00:13]}  Rxb7 {[%clk 0:00:09]} 35. Qxb7 {[%clk 0:00:13]}  Qf6 {[%clk 0:00:05]} 36. Qxe4 {[%clk 0:00:12]} 1-0


[Site "https://www.chess.com"]